fUSD/lending_fUSD_20240113
["ID","MTS","AMOUNT","RATE_DAILY","PERIOD"]
[311515589,1705171862291,-4697.73,0.000335,2]
[311515590,1705171862300,-4697.73,0.000335,2]
[311515591,1705171862310,-4697.73,0.000335,2]
[311515592,1705171862320,-4697.73,0.000335,2]
[311515593,1705171862329,-4697.73,0.000335,2]
[311515594,1705171862339,-4697.73,0.000335,2]
[311515595,1705171862349,-4697.73,0.000335,2]
[311515596,1705171862358,-4697.73,0.000335,2]
[311515597,1705171862367,-4697.73,0.000335,2]
[311515598,1705171862376,-4697.73,0.000335,2]
[311515599,1705171862386,-4697.73,0.000335,2]
[311515600,1705171862395,-4697.73,0.000335,2]
[311515601,1705171862405,-4697.73,0.000335,2]
[311515602,1705171862414,-4697.73,0.000335,2]
[311515603,1705171862423,-4697.73,0.000335,2]
[311515604,1705171862433,-6558.3994044,0.00033533,2]
[311515605,1705171862442,-14299.50816225,0.00033536,5]
[311515606,1705171862451,-150.0,0.00033583,2]
[311515607,1705171862460,-405.83,0.00033583,2]
[311515608,1705171862469,-366.71,0.00033583,2]
[311515609,1705171862478,-294.03,0.00033583,2]
[311515610,1705171862486,-500.0,0.00033619,7]
[311515611,1705171862495,-417.95,0.00033624,2]
[311515612,1705171862504,-605.0,0.00033668,3]
[311515613,1705171862513,-2000.0,0.00033737,2]
[311515614,1705171862522,-150.0,0.00033742,2]
[311515615,1705171862532,-153.84,0.0003379,2]
[311515616,1705171862541,-150.1,0.000338,2]
[311515617,1705171862550,-151.0,0.00033838,4]
[311515618,1705171862559,-500.0,0.00033877,7]
[311515619,1705171862568,-2507.65305162,0.00033889,6]
[311515620,1705171862577,-166.776333,0.000339,6]
[311515621,1705171862587,-3165.56,0.00033906,2]
[311515622,1705171862596,-150.0,0.00033919,2]
[311515623,1705171862605,-150.0,0.00033919,2]
[311515624,1705171862615,-1000.0,0.0003393,7]
[311515625,1705171862625,-8020.1334292,0.0003393,2]
[311515626,1705171862635,-3175.9763417,0.0003393,2]
[311515627,1705171862645,-3368.3193826,0.0003393,2]
[311515628,1705171862654,-1671.8101598,0.00033953,2]
[311515629,1705171862664,-66363.5245794,0.00033953,2]
[311515630,1705171862674,-676.495355,0.00033953,2]
[311515631,1705171862684,-2827.8650185,0.00033953,2]
[311515632,1705171862693,-189774.1916179,0.00033976,2]
[311515633,1705171862702,-10000.0,0.00033989,2]
[311515634,1705171862711,-200000.0,0.00034,4]
[311515635,1705171862721,-1000.0,0.00034,4]
[311515636,1705171862730,-802.40171117,0.00034,4]
[311515637,1705171862739,-100000.0,0.00034,6]
[311515638,1705171862748,-156.06909776,0.00034,2]
[311515639,1705171862758,-650.0000001,0.00034,7]
[311515640,1705171862769,-20038.39405068,0.00034,2]
[311515641,1705171862778,-19108.97,0.00034,3]
[311515642,1705171862789,-76471.06969516,0.00034,2]
[311515643,1705171862797,-1098.96642727,0.00034,2]
[311515644,1705171862807,-1000.0,0.00034,2]
[311515645,1705171862815,-1000.0,0.00034,2]
[311515646,1705171862825,-2000.0,0.00034,2]
[311515647,1705171862835,-1550.0,0.00034,3]
[311515648,1705171862846,-552.75,0.00034,2]
[311515649,1705171862857,-151.57405457,0.00034,3]
[311515650,1705171862869,-151.57405457,0.00034,4]
[311515651,1705171862879,-151.57405457,0.00034,4]
[311515652,1705171862890,-151.57405457,0.00034,5]
[311515653,1705171862898,-151.57405457,0.00034,5]
[311515654,1705171862907,-151.57405457,0.00034,3]
[311515655,1705171862916,-151.57405457,0.00034,3]
[311515656,1705171862926,-151.57405457,0.00034,4]
[311515657,1705171862935,-151.57405457,0.00034,5]
[311515658,1705171862944,-151.57405457,0.00034,5]
[311515659,1705171862953,-151.57405457,0.00034,4]
[311515660,1705171862962,-151.57405457,0.00034,4]
[311515661,1705171862971,-151.57405457,0.00034,6]
[311515662,1705171862981,-151.57405457,0.00034,6]
[311515663,1705171862990,-151.57405457,0.00034,2]
[311515664,1705171862999,-151.57405457,0.00034,5]
[311515665,1705171863008,-151.57405457,0.00034,3]
[311515666,1705171863017,-151.57405457,0.00034,4]
[311515667,1705171863026,-151.57405457,0.00034,4]
[311515668,1705171863036,-151.57405457,0.00034,6]
[311515669,1705171863045,-151.57405457,0.00034,6]
[311515670,1705171863054,-151.57405457,0.00034,6]
[311515671,1705171863063,-151.57405457,0.00034,6]
[311515672,1705171863072,-151.57405457,0.00034,6]
[311515673,1705171863081,-151.57405457,0.00034,5]
[311515674,1705171863090,-151.57405457,0.00034,3]
[311515675,1705171863099,-151.57405457,0.00034,6]
[311515676,1705171863108,-151.57405457,0.00034,4]
[311515678,1705171863117,-151.57405457,0.00034,5]
[311515679,1705171863127,-151.57405457,0.00034,3]
[311515680,1705171863136,-151.57405457,0.00034,3]
[311515682,1705171863146,-151.57405457,0.00034,6]
[311515683,1705171863156,-151.57405457,0.00034,6]
[311515684,1705171863165,-151.57405457,0.00034,6]
[311515685,1705171863174,-151.57405457,0.00034,3]
[311515686,1705171863183,-151.57405457,0.00034,5]
[311515687,1705171863193,-151.57405457,0.00034,4]
[311515688,1705171863202,-151.57405457,0.00034,5]
[311515689,1705171863211,-151.57405457,0.00034,5]
[311515690,1705171863221,-151.57405457,0.00034,3]
[311515691,1705171863230,-151.57405457,0.00034,5]
[311515692,1705171863240,-151.57405457,0.00034,5]
[311515693,1705171863250,-151.57405457,0.00034,2]
[311515694,1705171863259,-151.57405457,0.00034,5]
[311515695,1705171863270,-151.57405457,0.00034,6]
[311515696,1705171863282,-151.57405457,0.00034,3]
[311515697,1705171863291,-151.57405457,0.00034,5]
[311515698,1705171863300,-151.57405457,0.00034,4]
[311515699,1705171863310,-151.57405457,0.00034,6]
[311515700,1705171863319,-151.57405457,0.00034,6]
[311515701,1705171863328,-151.57405457,0.00034,4]
[311515702,1705171863337,-151.57405457,0.00034,2]
[311515703,1705171863349,-151.57405457,0.00034,3]
[311515704,1705171863358,-151.57405457,0.00034,3]
[311515705,1705171863368,-151.57405457,0.00034,6]
[311515706,1705171863377,-151.57405457,0.00034,4]
[311515707,1705171863387,-151.57405457,0.00034,2]
[311515708,1705171863396,-151.57405457,0.00034,5]
[311515709,1705171863405,-151.57405457,0.00034,4]
[311515710,1705171863415,-151.57405457,0.00034,3]
[311515711,1705171863424,-151.57405457,0.00034,2]
[311515713,1705171863433,-151.57405457,0.00034,2]
[311515714,1705171863442,-151.57405457,0.00034,3]
[311515715,1705171863451,-151.57405457,0.00034,6]
[311515716,1705171863462,-151.57405457,0.00034,2]
[311515717,1705171863471,-151.57405457,0.00034,2]
[311515718,1705171863480,-151.57405457,0.00034,6]
[311515719,1705171863490,-151.57405457,0.00034,6]
[311515720,1705171863501,-151.57405457,0.00034,5]
[311515721,1705171863512,-151.57405457,0.00034,6]
[311515722,1705171863522,-151.57405457,0.00034,5]
[311515723,1705171863531,-151.57405457,0.00034,5]
[311515724,1705171863544,-151.57405457,0.00034,5]
[311515725,1705171863554,-151.57405457,0.00034,6]
[311515726,1705171863563,-151.57405457,0.00034,2]
[311515727,1705171863572,-151.57405457,0.00034,3]
[311515728,1705171863582,-151.57405457,0.00034,6]
[311515729,1705171863591,-151.57405457,0.00034,2]
[311515730,1705171863600,-151.57405457,0.00034,6]
[311515731,1705171863609,-151.57405457,0.00034,6]
[311515732,1705171863619,-151.57405457,0.00034,2]
[311515733,1705171863628,-151.57405457,0.00034,5]
[311515734,1705171863638,-151.57405457,0.00034,6]
[311515735,1705171863647,-500.0,0.00034,3]
[311515736,1705171863656,-300.0,0.00034,7]
[311515737,1705171863665,-797.6693962,0.00034,2]
[311515738,1705171863675,-311.785573,0.0003408,2]
[311515739,1705171863687,-500.0,0.00034136,7]
[311515740,1705171863697,-450.0,0.00034153,3]
[311515741,1705171863706,-1155.47,0.00034246,3]
[311515742,1705171863716,-1155.47,0.00034246,3]
[311515743,1705171863727,-1155.47,0.00034246,3]
[311515744,1705171863737,-1155.47,0.00034246,3]
[311515745,1705171863746,-1155.47,0.00034246,3]
[311515746,1705171863756,-1155.47,0.00034246,3]
[311515747,1705171863766,-1155.47,0.00034246,3]
[311515748,1705171863775,-1155.47,0.00034246,3]
[311515749,1705171863784,-1155.47,0.00034246,3]
[311515750,1705171863793,-1155.47,0.00034246,3]
[311515751,1705171863802,-1155.47,0.00034246,3]
[311515752,1705171863811,-1155.47,0.00034246,3]
[311515753,1705171863820,-1155.47,0.00034246,3]
[311515754,1705171863829,-1155.47,0.00034246,3]
[311515755,1705171863838,-1155.47,0.00034246,3]
[311515756,1705171863847,-1155.47,0.00034246,3]
[311515757,1705171863856,-1155.47,0.00034246,3]
[311515758,1705171863865,-1155.47,0.00034246,3]
[311515759,1705171863874,-1155.47,0.00034246,3]
[311515760,1705171863883,-1155.47,0.00034246,3]
[311515761,1705171863892,-1155.47,0.00034246,3]
[311515762,1705171863901,-1155.47,0.00034246,3]
[311515763,1705171863910,-1155.47,0.00034246,3]
[311515764,1705171863919,-1155.51131675,0.00034246,3]
[311515765,1705171863928,-155.0,0.00034247,2]
[311515766,1705171863938,-209.0,0.0003432,2]
[311515767,1705171863947,-209.0,0.0003432,2]
[311515768,1705171863956,-152.0,0.00034357,8]
[311515769,1705171863965,-500.0,0.00034395,7]
[311515770,1705171863975,-264.79,0.00034405,2]
[311515771,1705171863984,-843.49,0.00034405,2]
[311515772,1705171863993,-3000.0,0.00034463,7]
[311515773,1705171864002,-150.0,0.00034479,2]
[311515774,1705171864011,-150.0,0.00034479,2]
[311515775,1705171864020,-2520.0,0.000345,30]
[311515776,1705171864030,-2520.0,0.000345,60]
[311515777,1705171864040,-695.0,0.00034516,5]
[311515778,1705171864049,-39164.133037,0.0003452,2]
[311515779,1705171864058,-5961.995064,0.0003452,2]
[311515780,1705171864068,-593.527144,0.0003452,2]
[311515781,1705171864077,-363.203527,0.0003452,2]
[311515782,1705171864088,-7973.128084,0.0003452,2]
[311515783,1705171864097,-484.271369,0.0003452,2]
[311515784,1705171864106,-1727.323811,0.0003452,2]
[311515785,1705171864115,-1381.859049,0.0003452,2]
[311515786,1705171864124,-478.664372,0.0003452,2]
[311515787,1705171864134,-1298.790398,0.0003452,2]
[311515788,1705171864143,-1948.185597,0.0003452,2]
[311515789,1705171864152,-2597.580797,0.0003452,2]
[311515790,1705171864161,-843.724842,0.0003452,2]
[311515791,1705171864170,-7530.274451,0.0003452,2]
[311515792,1705171864180,-687.939222,0.0003452,2]
[311515793,1705171864189,-10000.0,0.00034521,2]
[311515794,1705171864198,-151.0,0.00034529,2]
[311515795,1705171864207,-150.0,0.00034607,2]
[311515796,1705171864216,-940.21,0.00034633,2]
[311515797,1705171864225,-802.54,0.00034633,2]
[311515798,1705171864235,-500.0,0.00034653,7]
[311515799,1705171864244,-180.0,0.00034658,2]
[311515800,1705171864253,-170.8080721,0.00034701,4]
[311515801,1705171864263,-153.84,0.00034703,2]
[311515802,1705171864271,-948.53,0.00034703,2]
[311515803,1705171864281,-14299.50816225,0.00034718,7]
[311515804,1705171864290,-2000.0,0.00034737,2]
[311515805,1705171864299,-317.823804,0.00034794,2]
[311515806,1705171864308,-317.823804,0.00034794,2]
[311515807,1705171864317,-58746.199555,0.00034794,2]
[311515808,1705171864327,-8942.992596,0.00034794,2]
[311515809,1705171864336,-890.290716,0.00034794,2]
[311515810,1705171864345,-544.80529,0.00034794,2]
[311515811,1705171864354,-11959.692127,0.00034794,2]
[311515812,1705171864364,-726.407054,0.00034794,2]
[311515813,1705171864373,-2590.985717,0.00034794,2]
[311515814,1705171864382,-2072.788573,0.00034794,2]
[311515815,1705171864391,-717.996558,0.00034794,2]
[311515816,1705171864400,-1948.185597,0.00034794,2]
[311515817,1705171864409,-2922.278396,0.00034794,2]
[311515818,1705171864419,-3896.371196,0.00034794,2]
[311515819,1705171864428,-1265.587263,0.00034794,2]
[311515820,1705171864437,-11295.411676,0.00034794,2]
[311515821,1705171864446,-1031.908834,0.00034794,2]
[311515822,1705171864455,-34710.23786659,0.000348,2]
[311515823,1705171864464,-3165.56,0.00034884,2]
[311515824,1705171864473,-8949.23110012,0.000349,4]
[311515825,1705171864482,-510.9625469,0.000349,2]
[311515826,1705171864492,-14886.57894287,0.000349,5]
[311515827,1705171864501,-6410.82190328,0.000349,2]
[311515828,1705171864511,-6410.8219031,0.000349,2]
[311515829,1705171864520,-6410.8219031,0.000349,2]
[311515830,1705171864529,-6410.8219031,0.000349,2]
[311515831,1705171864538,-6410.8219031,0.000349,2]
[311515832,1705171864547,-6410.8219031,0.000349,2]
[311515833,1705171864556,-6410.8219031,0.000349,2]
[311515834,1705171864566,-6410.8219031,0.000349,2]
[311515835,1705171864575,-6410.8219031,0.000349,2]
[311515836,1705171864585,-500.0,0.00034912,7]
[311515837,1705171864595,-6558.3994044,0.00034928,2]
[311515838,1705171864605,-78328.266074,0.00034931,2]
[311515839,1705171864616,-11923.990128,0.00034931,2]
[311515840,1705171864627,-1187.054289,0.00034931,2]
[311515841,1705171864645,-726.407054,0.00034931,2]
[311515842,1705171864657,-15946.256169,0.00034931,2]
[311515843,1705171864666,-968.542738,0.00034931,2]
[311515844,1705171864678,-3454.647622,0.00034931,2]
[311515845,1705171864689,-2763.718098,0.00034931,2]
[311515846,1705171864698,-957.328744,0.00034931,2]
[311515847,1705171864707,-2597.580797,0.00034931,2]
[311515848,1705171864717,-3896.371195,0.00034931,2]
[311515849,1705171864726,-5195.161595,0.00034931,2]
[311515850,1705171864735,-1687.449684,0.00034931,2]
[311515851,1705171864745,-15060.548902,0.00034931,2]
[311515852,1705171864754,-1375.878445,0.00034931,2]
[311515853,1705171864763,-835.0,0.00034938,2]
[311515854,1705171864773,-945.0,0.00034938,2]
[311515855,1705171864782,-1234.0,0.00034938,2]
[311515856,1705171864792,-1252.0,0.00034938,2]
[311515857,1705171864802,-3171.381,0.00034938,2]
[311515858,1705171864811,-19683.0,0.00034938,2]
[311515859,1705171864821,-2271.0,0.00034938,2]
[311515860,1705171864831,-729.52965711,0.0003498,3]
[311515861,1705171864841,-346.78113923,0.0003498,3]
[311515862,1705171864851,-334.57014066,0.0003498,3]
[311515863,1705171864860,-694.5303652,0.0003498,3]
[311515864,1705171864870,-493.28469371,0.0003498,3]
[311515865,1705171864880,-315.0,0.0003498,3]
[311515866,1705171864890,-307.27186768,0.0003498,3]
[311515867,1705171864900,-542.65597104,0.0003498,3]
[311515868,1705171864909,-719.56575525,0.0003498,3]
[311515869,1705171864919,-200000.0,0.00035,5]
[311515870,1705171864928,-255.47708732,0.00035,4]
[311515871,1705171864938,-1540.6798415,0.00035,4]
[311515872,1705171864947,-447.22423365,0.00035,4]
[311515873,1705171864957,-2500.0,0.00035,2]
[311515874,1705171864966,-619.27875171,0.00035,4]
[311515875,1705171864976,-2000.0,0.00035,2]
[311515876,1705171864986,-1256.88761536,0.00035,4]
[311515877,1705171864995,-76507.48,0.00035,5]
[311515878,1705171865005,-501.1189,0.00035,5]
[311515879,1705171865014,-4876.4889046,0.00035,10]
[311515880,1705171865024,-5000.0,0.00035,2]
[311515881,1705171865035,-155.0,0.00035,2]
[311515882,1705171865045,-185.61334373,0.00035,4]
[311515883,1705171865056,-343.53880072,0.00035,4]
[311515884,1705171865067,-3120.10927373,0.00035,7]
[311515885,1705171865078,-3829.04521418,0.00035,2]
[311515886,1705171865088,-3260.0014051,0.00035,12]
[311515887,1705171865099,-500.0,0.00035,7]
[311515888,1705171865110,-341.33267729,0.00035,2]
[311515889,1705171865120,-1000.0,0.00035,5]
[311515890,1705171865130,-514.44839734,0.00035,14]
[311515891,1705171865140,-54107.48664094,0.00035,2]
[311515892,1705171865151,-343.53052878,0.00035,7]
[311515893,1705171865161,-309.54678629,0.00035,4]
[311515894,1705171865172,-15758.79509932,0.00035,7]
[311515895,1705171865182,-3494.78513457,0.00035,16]
[311515896,1705171865192,-514.18350963,0.00035,2]
[311515897,1705171865203,-1038.0,0.00035,2]
[311515898,1705171865214,-223078.43154857,0.00035,5]
[311515899,1705171865224,-150.0,0.00035,7]
[311515900,1705171865235,-844.36006733,0.00035,30]
[311515901,1705171865245,-200.0,0.00035,5]
[311515902,1705171865255,-2255.0,0.00035,30]
[311515903,1705171865266,-200.0,0.00035,5]
[311515904,1705171865276,-1000.0,0.00035,7]
[311515905,1705171865286,-200.0,0.00035,5]
[311515906,1705171865296,-2200.0,0.00035,3]
[311515907,1705171865307,-3531.87843909,0.00035,14]
[311515908,1705171865317,-1000.0,0.00035,2]
[311515909,1705171865327,-1000.0,0.00035,2]
[311515910,1705171865337,-176.82430854,0.00035,5]
[311515911,1705171865348,-2000.0,0.00035,2]
[311515912,1705171865358,-235.79116121,0.00035,2]
[311515913,1705171865368,-317.823804,0.00035,2]
[311515914,1705171865379,-317.823804,0.00035,2]
[311515915,1705171865388,-2007.06,0.00035,2]
[311515916,1705171865399,-500.0,0.00035,3]
[311515917,1705171865409,-3000.0,0.00035,8]
[311515918,1705171865419,-232.23458322,0.00035,2]
[311515919,1705171865430,-8373.8383588,0.00035,2]
[311515920,1705171865440,-8373.8383588,0.00035,2]
[311515921,1705171865450,-292.90873151,0.00035,2]
[311515922,1705171865461,-1038.5507334,0.00035,2]
[311515923,1705171865471,-4387.79543113,0.00035,2]
[311515924,1705171865482,-19128.16415236,0.00035,2]
[311515925,1705171865492,-500.0,0.00035,5]
[311515926,1705171865502,-7000.0,0.00035,7]
[311515927,1705171865513,-2041.0,0.00035,2]
[311515928,1705171865523,-1092.0,0.00035,2]
[311515929,1705171865534,-3000.0,0.0003501,8]
[311515930,1705171865546,-450.0,0.0003502,3]
[311515931,1705171865556,-450.0,0.0003502,3]
[311515932,1705171865566,-3000.0,0.0003502,8]
[311515933,1705171865576,-3000.0,0.0003503,8]
[311515934,1705171865587,-150.0,0.00035039,2]
[311515935,1705171865597,-150.0,0.00035039,2]
[311515936,1705171865607,-5204.992526,0.0003504,9]
[311515937,1705171865618,-9521.33483129,0.00035047,2]
[311515938,1705171865628,-97910.332593,0.00035068,2]
[311515939,1705171865639,-14904.98766,0.00035068,2]
[311515940,1705171865650,-1483.817861,0.00035068,2]
[311515941,1705171865660,-908.008817,0.00035068,2]
[311515942,1705171865670,-19932.820211,0.00035068,2]
[311515943,1705171865681,-1210.678423,0.00035068,2]
[311515944,1705171865693,-4318.309528,0.00035068,2]
[311515945,1705171865704,-3454.647623,0.00035068,2]
[311515946,1705171865714,-1196.66093,0.00035068,2]
[311515947,1705171865724,-3246.975996,0.00035068,2]
[311515948,1705171865735,-4870.463994,0.00035068,2]
[311515949,1705171865746,-6493.951993,0.00035068,2]
[311515950,1705171865756,-2109.312105,0.00035068,2]
[311515951,1705171865767,-18825.686127,0.00035068,2]
[311515952,1705171865778,-1719.848056,0.00035068,2]
[311515953,1705171865791,-558.53,0.00035077,2]
[311515954,1705171865802,-744.0,0.00035087,3]
[311515955,1705171865813,-500.0,0.0003517,7]
[311515956,1705171865823,-6013.68060463,0.000352,2]
[311515957,1705171865832,-216.0,0.0003525,2]
[311515958,1705171865843,-209.0,0.0003528,2]
[311515959,1705171865853,-209.0,0.0003528,2]
[311515960,1705171865864,-1782.6285537,0.00035294,2]
[311515961,1705171865874,-8914.2699264,0.00035294,2]
[311515962,1705171865885,-3175.9763417,0.00035294,2]
[311515963,1705171865897,-3368.3193826,0.00035294,2]
[311515964,1705171865908,-6558.3994044,0.00035315,2]
[311515965,1705171865918,-210610.1951028,0.00035318,2]
[311515966,1705171865929,-73608.4752928,0.00035318,2]
[311515967,1705171865940,-750.3488089,0.00035318,2]
[311515968,1705171865951,-3143.1337537,0.00035318,2]
[311515969,1705171865962,-137074.46563,0.00035342,2]
[311515970,1705171865973,-20866.982725,0.00035342,2]
[311515971,1705171865985,-2077.345006,0.00035342,2]
[311515972,1705171865996,-1271.212345,0.00035342,2]
[311515973,1705171866007,-27905.948296,0.00035342,2]
[311515974,1705171866018,-1694.949792,0.00035342,2]
[311515975,1705171866030,-6045.633339,0.00035342,2]
[311515976,1705171866044,-4836.506672,0.00035342,2]
[311515977,1705171866056,-1675.325302,0.00035342,2]
[311515978,1705171866068,-4545.766395,0.00035342,2]
[311515979,1705171866080,-6818.649592,0.00035342,2]
[311515980,1705171866092,-9091.532791,0.00035342,2]
[311515981,1705171866104,-2953.036947,0.00035342,2]
[311515982,1705171866117,-26355.960579,0.00035342,2]
[311515983,1705171866129,-2407.787279,0.00035342,2]
[311515984,1705171866141,-3197.052341,0.00035375,2]
[311515985,1705171866153,-928.197093,0.00035375,2]
[311515986,1705171866164,-3028.818103,0.00035375,2]
[311515987,1705171866176,-182.980509,0.00035375,2]
[311515988,1705171866188,-196.269598,0.00035375,2]
[311515989,1705171866200,-171.389841,0.00035375,2]
[311515990,1705171866213,-190.449159,0.00035375,2]
[311515991,1705171866224,-500.0,0.00035429,7]
[311515992,1705171866236,-150.0,0.00035472,2]
[311515993,1705171866249,-153.10547594,0.0003549,10]
[311515994,1705171866261,-150.74634693,0.000355,30]
[311515995,1705171866272,-1049.39485368,0.00035548,7]
[311515996,1705171866283,-1049.39485366,0.00035548,7]
[311515997,1705171866297,-1049.39485366,0.00035548,7]
[311515998,1705171866309,-1049.39485366,0.00035548,7]
[311515999,1705171866321,-1049.39485366,0.00035548,7]
[311516000,1705171866332,-212.0,0.00035591,3]
[311516001,1705171866343,-58000.0,0.00035598,3]
[311516002,1705171866356,-150.0,0.00035599,2]
[311516003,1705171866368,-150.0,0.00035599,2]
[311516004,1705171866380,-718.97885108,0.000356,2]
[311516005,1705171866391,-1000.0,0.000356,2]
[311516006,1705171866402,-750.0,0.000356,2]
[311516007,1705171866413,-58000.0,0.00035607,3]
[311516008,1705171866425,-58000.0,0.00035616,3]
[311516009,1705171866435,-150.0,0.00035616,2]
[311516010,1705171866446,-300.0,0.00035616,7]
[311516011,1705171866456,-450.0,0.00035616,12]
[311516012,1705171866466,-256.92443804,0.00035616,17]
[311516013,1705171866477,-153.84,0.00035616,2]
[311516014,1705171866487,-155.0,0.00035617,2]
[311516015,1705171866498,-1214.26617471,0.0003562,7]
[311516016,1705171866508,-1214.26617471,0.0003562,7]
[311516017,1705171866518,-1214.26617471,0.0003562,7]
[311516018,1705171866530,-1214.26617471,0.0003562,7]
[311516019,1705171866544,-1214.26617471,0.0003562,7]
[311516020,1705171866555,-1214.26617471,0.0003562,7]
[311516021,1705171866566,-1214.26617471,0.0003562,7]
[311516022,1705171866576,-1214.26617471,0.0003562,7]
[311516023,1705171866586,-1214.26617471,0.0003562,7]
[311516024,1705171866596,-1214.26617471,0.0003562,7]
[311516025,1705171866607,-1214.26617471,0.0003562,7]
[311516026,1705171866617,-1214.26617471,0.0003562,7]
[311516027,1705171866627,-1214.26617471,0.0003562,7]
[311516028,1705171866638,-1214.26617471,0.0003562,7]
[311516029,1705171866648,-1214.26617471,0.0003562,7]
[311516030,1705171866658,-1214.26617471,0.0003562,7]
[311516031,1705171866668,-1214.26617471,0.0003562,7]
[311516032,1705171866678,-1214.26617471,0.0003562,7]
[311516033,1705171866689,-1214.26617471,0.0003562,7]
[311516034,1705171866700,-1214.26,0.0003562,7]
[311516035,1705171866712,-625.3695367,0.0003562,7]
[311516036,1705171866723,-625.3695367,0.0003562,7]
[311516037,1705171866733,-625.3695367,0.0003562,7]
[311516038,1705171866744,-625.3695367,0.0003562,7]
[311516039,1705171866754,-625.3695367,0.0003562,7]
[311516040,1705171866764,-625.3695367,0.0003562,7]
[311516041,1705171866774,-625.3695367,0.0003562,7]
[311516042,1705171866785,-625.3695367,0.0003562,7]
[311516043,1705171866795,-625.3695367,0.0003562,7]
[311516044,1705171866806,-625.3695367,0.0003562,7]
[311516045,1705171866816,-625.3695367,0.0003562,7]
[311516046,1705171867044,-625.3695367,0.0003562,7]
[311516047,1705171867057,-625.3695367,0.0003562,7]
[311516048,1705171867071,-625.3695367,0.0003562,7]
[311516049,1705171867081,-625.3695367,0.0003562,7]
[311516050,1705171867090,-625.3695367,0.0003562,7]
[311516051,1705171867100,-625.3695367,0.0003562,7]
[311516052,1705171867124,-625.3695367,0.0003562,7]
[311516053,1705171867134,-625.3695367,0.0003562,7]
[311516054,1705171867144,-625.36,0.0003562,7]
[311516055,1705171867154,-797.04681405,0.0003562,7]
[311516056,1705171867164,-797.04681405,0.0003562,7]
[311516057,1705171867174,-797.04681405,0.0003562,7]
[311516058,1705171867183,-797.04681405,0.0003562,7]
[311516059,1705171867196,-797.04681405,0.0003562,7]
[311516060,1705171867206,-797.04681405,0.0003562,7]
[311516061,1705171867215,-797.04681405,0.0003562,7]
[311516062,1705171867225,-797.04681405,0.0003562,7]
[311516063,1705171867247,-797.04681405,0.0003562,7]
[311516064,1705171867257,-797.04681405,0.0003562,7]
[311516065,1705171867267,-797.04681405,0.0003562,7]
[311516066,1705171867277,-797.04681405,0.0003562,7]
[311516067,1705171867286,-797.04681405,0.0003562,7]
[311516068,1705171867296,-797.04681405,0.0003562,7]
[311516069,1705171867305,-797.04681405,0.0003562,7]
[311516070,1705171867331,-797.04681405,0.0003562,7]
[311516071,1705171867343,-797.04681405,0.0003562,7]
[311516072,1705171867355,-797.04681405,0.0003562,7]
[311516073,1705171867364,-797.04681405,0.0003562,7]
[311516074,1705171867374,-797.04,0.0003562,7]
[311516075,1705171867384,-659.65134669,0.0003562,7]
[311516076,1705171867394,-659.65134669,0.0003562,7]
[311516077,1705171867403,-659.65134669,0.0003562,7]
[311516078,1705171867413,-659.65134669,0.0003562,7]
[311516079,1705171867422,-659.65134669,0.0003562,7]
[311516080,1705171867432,-659.65134669,0.0003562,7]
[311516081,1705171867441,-659.65134669,0.0003562,7]
[311516082,1705171867451,-659.65134669,0.0003562,7]
[311516083,1705171867460,-659.65134669,0.0003562,7]
[311516084,1705171867469,-659.65134669,0.0003562,7]
[311516085,1705171867479,-659.65134669,0.0003562,7]
[311516086,1705171867488,-659.65134669,0.0003562,7]
[311516087,1705171867498,-659.65134669,0.0003562,7]
[311516088,1705171867508,-659.65134669,0.0003562,7]
[311516089,1705171867518,-659.65134669,0.0003562,7]
[311516090,1705171867528,-659.65134669,0.0003562,7]
[311516091,1705171867539,-659.65134669,0.0003562,7]